bitfinex-derivatives/quotes_SOLF0:USTF0_20250428
["timestamp","ask_amount","ask_price","bid_price","bid_amount"]
[1745803167079,6.8172,146.64,146.58,26.98]
[1745803167281,7.40604061,146.65,146.58,26.98]
[1745803168082,26.98,146.66,146.58,26.98]
[1745803168584,6.8172,146.64,146.6,6.8187]
[1745803168884,26.98,146.66,146.58,26.98]
[1745803169284,6.8171,146.65,146.58,26.98]
[1745803170080,33.7964,146.66,146.59,7.40604061]
[1745803170481,7.40604061,146.67,146.59,7.40604061]
[1745803170682,6.8168,146.65,146.61,6.8182]
[1745803170883,7.40604061,146.67,146.59,7.40604061]
[1745803171085,36.39984061,146.69,146.61,7.40604061]
[1745803171285,36.39984061,146.69,146.62,26.98]
[1745803171485,34.38604061,146.69,146.62,26.98]
[1745803171786,7.40604061,146.71,146.62,26.98]
[1745803172188,36.50234061,146.73,146.65,7.40604061]
[1745803172383,36.50234061,146.73,146.66,26.98]
[1745803172584,34.38604061,146.73,146.66,26.98]
[1745803172786,7.40604061,146.75,146.67,7.40604061]
[1745803173082,6.8134,146.73,146.69,6.8147]
[1745803173287,7.40604061,146.75,146.67,4.0183]
[1745803174189,6.8138,146.72,146.68,6.8149]
[1745803174589,34.38604061,146.76,146.67,11.42434061]
[1745803175086,6.8129,146.74,146.7,6.8142]
[1745803175588,6.8123,146.75,146.71,6.8139]
[1745803176287,6.8126,146.74,146.71,6.8139]
[1745803176485,6.8126,146.74,146.7,6.8142]
[1745803178789,7.40604061,146.76,146.67,13.35294061]
[1745803179088,7.40604061,146.74,146.67,5.9469]
[1745803179686,7.40604061,146.74,146.68,6.815]
[1745803179687,6.8135,146.72,146.68,6.815]
[1745803180285,6.814,146.71,146.68,6.815]
[1745803180586,7.40604061,146.74,146.66,26.98]
[1745803180787,34.34604061,146.74,146.66,26.98]
[1745803180988,6.8138,146.72,146.68,6.8153]
[1745803181191,7.40604061,146.7,146.63,517.84]
[1745803181382,7.40604061,146.68,146.63,26.94]
[1745803182090,6.8152,146.69,146.65,6.8164]
[1745803182390,34.34604061,146.7,146.65,6.8164]
[1745803182590,34.34604061,146.7,146.64,6.817]
[1745803182791,34.34604061,146.7,146.63,26.94]
[1745803183189,6.8161,146.67,146.63,33.7573]
[1745803183384,7.40604061,146.66,146.58,9.38094061]
[1745803183588,7.40604061,146.66,146.59,26.94]
[1745803183792,6.8168,146.65,146.59,26.94]
[1745803184091,7.40604061,146.66,146.59,26.94]
[1745803184294,14.22264061,146.66,146.62,6.8177]
[1745803185193,6.8168,146.65,146.62,6.8177]
[1745803185392,7.40604061,146.64,146.59,26.94]
[1745803185693,6.8184,146.62,146.59,26.94]
[1745803185987,6.8184,146.62,146.58,6.8199]
[1745803186192,6.8184,146.62,146.56,517.68]
[1745803186693,7.40604061,146.64,146.56,517.68]
[1745803187793,6.8185,146.62,146.58,6.82]
[1745803188195,7.40604061,146.64,146.58,6.82]
[1745803188385,7.40604061,146.64,146.56,517.68]
[1745803188386,7.40604061,146.64,146.56,26.94]
[1745803188592,7.40604061,146.62,146.56,26.94]
[1745803189000,7.40604061,146.62,146.56,33.7607]
[1745803190290,7.40604061,146.62,146.56,26.94]
[1745803190692,34.34604061,146.62,146.53,32.9019]
[1745803191796,6.8195,146.59,146.55,6.8211]
[1745803192394,6.8195,146.59,146.56,6.8209]
[1745803193491,7.40604061,146.58,146.53,26.94]
[1745803193697,7.40604061,146.56,146.5,26.94]
[1745803194194,6.8217,146.55,146.51,6.8229]
[1745803194697,14.22714061,146.56,146.52,6.8227]
[1745803194895,7.40604061,146.56,146.5,26.94]
[1745803195798,14.22724061,146.56,146.52,6.8227]
[1745803196600,6.8206,146.57,146.53,6.8219]
[1745803197300,41.16614061,146.58,146.54,6.8217]
[1745803197894,33.7601,146.58,146.55,6.8214]
[1745803198101,26.94,146.58,146.55,6.8214]
[1745803198502,26.94,146.58,146.54,6.8217]
[1745803199203,34.34604061,146.58,146.5,34.34604061]
[1745803199604,490.88,146.64,146.55,6.821]
[1745803199605,7.40604061,146.6,146.55,6.821]
[1745803200605,7.40604061,146.6,146.56,6.8208]
[1745803200805,34.36604061,146.62,146.55,26.96]
[1745803201105,6.8191,146.6,146.56,6.8207]
[1745803201309,6.8191,146.6,146.55,26.96]
[1745803201706,6.8191,146.6,146.56,6.8207]
[1745803202306,34.36604061,146.62,146.55,26.96]
[1745803203109,34.36604061,146.62,146.55,33.7813]
[1745803203810,6.8199,146.59,146.55,33.7813]
[1745803204210,7.40604061,146.6,146.53,2.0221]
[1745803204710,6.8209,146.57,146.53,6.8219]
[1745803204911,6.8209,146.57,146.52,26.92]
[1745803205511,7.40604061,146.58,146.52,26.92]
[1745803205715,14.22614061,146.58,146.52,26.92]
[1745803205908,7.40604061,146.62,146.52,34.32604061]
[1745803206108,6.8191,146.6,146.53,4.0081]
[1745803206304,26.92,146.61,146.53,4.0081]
[1745803206511,7.40604061,146.6,146.53,4.0081]
[1745803206712,6.8204,146.57,146.54,6.8218]
[1745803207110,7.40604061,146.58,146.49,490.82]
[1745803207307,6.8219,146.54,146.5,6.8235]
[1745803207512,7.40604061,146.54,146.49,26.92]
[1745803208803,7.40604061,146.54,146.47,4.0081]
[1745803209313,6.8228,146.52,146.49,6.8239]
[1745803210615,6.8237,146.5,146.47,4.0081]
[1745803210924,7.40604061,146.54,146.47,4.0081]
[1745803211111,28.8389,146.57,146.47,4.0081]
[1745803211112,6.8211,146.56,146.48,7.40604061]
[1745803211308,26.94,146.61,146.54,7.40604061]
[1745803211807,26.94,146.61,146.56,6.8208]
[1745803212515,6.8192,146.6,146.56,6.8208]
[1745803212715,9.47084061,146.64,146.56,7.40604061]
[1745803213409,7.40604061,146.62,146.55,2.0522]
[1745803213604,6.8191,146.6,146.55,2.0522]
[1745803213810,6.8191,146.6,146.56,6.8206]
[1745803214519,6.8196,146.59,146.55,8.8734]
[1745803214819,7.40604061,146.62,146.55,8.8734]
[1745803215017,7.40604061,146.62,146.55,2.0522]
[1745803215619,6.8203,146.58,146.55,2.0522]
[1745803216121,7.40604061,146.62,146.55,2.0522]
[1745803216321,6.8194,146.6,146.56,6.8208]
[1745803216622,7.40604061,146.62,146.55,2.0522]
[1745803216921,6.8198,146.59,146.55,8.8735]
[1745803217421,6.8201,146.58,146.55,8.8735]
[1745803217717,6.8201,146.58,146.54,18.35724061]
[1745803217922,6.8201,146.58,146.54,10.9512]
[1745803218320,7.40604061,146.6,146.54,4.1295]
[1745803218519,7.40604061,146.58,146.53,26.94]
[1745803218817,7.40604061,146.58,146.5,26.92]
[1745803219013,6.8212,146.56,146.52,6.8226]
[1745803219523,6.8214,146.55,146.52,6.8226]
[1745803219723,7.40604061,146.56,146.5,26.92]
[1745803220324,6.8221,146.54,146.5,33.7436]
[1745803220518,7.40604061,146.56,146.5,33.7436]
[1745803221323,6.8222,146.54,146.5,33.7436]
[1745803221523,7.40604061,146.56,146.51,6.8232]
[1745803221925,7.40604061,146.56,146.5,33.7435]
[1745803222425,6.8221,146.54,146.5,33.7435]
[1745803222729,7.40604061,146.54,146.47,26.94]
[1745803223024,6.8247,146.48,146.44,26.94]
[1745803223325,6.8247,146.48,146.44,33.7662]
[1745803223524,6.8247,146.48,146.44,26.94]
[1745803224219,6.8247,146.48,146.45,6.8259]
[1745803224424,6.8247,146.48,146.44,26.94]
[1745803225025,6.8247,146.48,146.44,33.7662]
[1745803225426,6.8243,146.49,146.44,26.94]
[1745803226027,26.94,146.52,146.46,7.40604061]
[1745803226230,26.94,146.55,146.47,3.8614]
[1745803226421,7.40604061,146.54,146.47,3.8614]
[1745803226920,6.824,146.5,146.47,3.8614]
[1745803227128,7.40604061,146.52,146.44,26.94]
[1745803227529,26.94,146.55,146.44,26.94]
[1745803227530,7.40604061,146.5,146.44,26.94]
[1745803227725,7.40604061,146.5,146.41,38.20744061]
[1745803228327,6.8254,146.47,146.43,6.8269]
[1745803228629,7.40604061,146.5,146.43,6.8269]
[1745803228830,6.8256,146.46,146.42,6.8273]
[1745803229232,6.8252,146.47,146.43,6.827]
[1745803230026,6.826,146.45,146.41,37.629]
[1745803230232,7.40604061,146.48,146.41,26.94]
[1745803230731,7.40604061,146.46,146.41,26.94]
[1745803231132,6.827,146.43,146.39,6.8287]
[1745803231832,6.8268,146.44,146.4,6.8279]
[1745803232423,6.827,146.43,146.39,6.8285]
[1745803232632,7.40604061,146.45,146.38,26.94]
[1745803232834,7.40604061,146.41,146.36,6.127]
[1745803233130,6.8287,146.4,146.34,26.94]
[1745803233329,7.40604061,146.41,146.34,26.94]
[1745803233527,34.34604061,146.43,146.34,34.34604061]
[1745803233927,6.8275,146.42,146.38,6.8292]
[1745803234125,7.40604061,146.48,146.38,34.34604061]
[1745803234329,26.94,146.47,146.4,7.40604061]
[1745803234535,6.8257,146.46,146.42,6.8274]
[1745803234834,26.94,146.47,146.39,2.084]
[1745803235034,6.8266,146.44,146.4,6.8279]
[1745803235237,26.94,146.47,146.39,2.084]
[1745803235932,2.0843,146.49,146.4,11.87993959]
[1745803236140,26.92,146.51,146.43,11.87993959]
[1745803236341,11.87993959,146.49,146.4,26.92]
[1745803236840,11.87993959,146.46,146.36,1.9604]
[1745803237035,11.87993959,146.43,146.32,26.92]
[1745803237338,38.79993959,146.43,146.32,26.92]
[1745803237543,38.79993959,146.43,146.36,26.92]
[1745803237544,26.92,146.43,146.36,26.92]
[1745803237941,33.7473,146.43,146.39,6.8287]
[1745803238237,26.92,146.43,146.36,26.92]
[1745803238438,6.8263,146.45,146.37,3.9635]
[1745803238638,26.92,146.46,146.37,15.84343959]
[1745803239042,4.0213,146.48,146.37,15.84343959]
[1745803239337,4.0213,146.48,146.43,6.8267]
[1745803239643,4.0213,146.48,146.4,26.92]
[1745803239840,6.8259,146.46,146.42,6.827]
[1745803240040,11.87993959,146.46,146.37,30.8835]
[1745803240242,6.8279,146.42,146.37,37.7129]
[1745803240437,6.8279,146.42,146.37,30.8835]
[1745803240942,6.8279,146.42,146.38,6.829]
[1745803241145,26.92,146.45,146.34,26.92]
[1745803241146,11.87993959,146.43,146.34,26.92]
[1745803241840,11.87993959,146.43,146.36,6.8301]
[1745803242041,11.87993959,146.43,146.34,26.92]
[1745803242440,6.8287,146.4,146.36,6.8302]
[1745803242846,11.87993959,146.43,146.34,26.92]
[1745803243043,6.8281,146.41,146.37,6.8294]
[1745803243348,11.87993959,146.43,146.34,26.92]
[1745803243548,6.8285,146.4,146.34,26.92]
[1745803244046,11.87993959,146.43,146.34,26.92]
[1745803244047,6.8281,146.41,146.37,6.8298]
[1745803244247,26.92,146.45,146.34,38.79993959]
[1745803244750,11.87993959,146.43,146.34,26.92]
[1745803245249,4.2128,146.42,146.34,26.92]
[1745803245444,6.8297,146.38,146.34,26.92]
[1745803245748,6.8297,146.38,146.31,32.888]
[1745803245948,6.8297,146.38,146.34,6.8311]
[1745803246148,26.92,146.41,146.34,6.8311]
[1745803246647,6.8297,146.38,146.34,6.8311]
[1745803247550,6.8298,146.37,146.34,6.8311]
[1745803247850,6.8298,146.37,146.33,6.8315]
[1745803248251,6.8303,146.36,146.31,32.888]
[1745803248442,38.79993959,146.37,146.26,11.87993959]
[1745803248648,26.92,146.37,146.27,1.9377]
[1745803249249,4.2128,146.42,146.29,11.87993959]
[1745803249452,11.87993959,146.38,146.27,28.8577]
[1745803249648,26.92,146.37,146.27,28.8577]
[1745803249950,26.92,146.37,146.28,11.87993959]
[1745803250454,33.75,146.37,146.28,11.87993959]
[1745803250646,11.87993959,146.32,146.26,4.1182]
[1745803250852,11.87993959,146.31,146.25,12.5]
[1745803251047,6.8344,146.28,146.25,12.5]
[1745803251453,6.8349,146.26,146.15,50.99091145]
[1745803251654,26.94,146.28,146.18,3.9635]
[1745803252654,26.94,146.28,146.19,6.838]
[1745803252855,26.94,146.28,146.18,3.9635]
[1745803253353,26.94,146.28,146.19,26.94]
[1745803253955,11.87993959,146.27,146.18,3.9635]
[1745803254253,11.87993959,146.27,146.18,10.8017]
[1745803254848,11.87993959,146.21,146.09,64.13576387]
[1745803255048,38.81993959,146.24,146.11,42.77163959]
[1745803255245,38.81993959,146.24,146.11,44.83283959]
[1745803256053,6.8387,146.18,146.11,32.9529]
[1745803256258,11.87993959,146.21,146.11,26.94]
[1745803256259,26.94,146.2,146.11,26.94]
[1745803256759,26.94,146.2,146.14,6.8402]
[1745803257257,6.8385,146.19,146.14,6.8402]
[1745803257759,6.8385,146.19,146.13,6.8408]
[1745803258157,33.7778,146.2,146.12,1.9634]
[1745803258661,26.94,146.2,146.12,1.9634]
[1745803258953,26.94,146.2,146.07,4.0596]
[1745803259253,26.94,146.2,146.08,26.94]
[1745803259455,11.87993959,146.21,146.08,26.94]
[1745803259658,26.94,146.2,146.08,26.94]
[1745803259860,26.96,146.21,146.07,4.0596]
[1745803260158,11.87993959,146.19,146.08,26.96]
[1745803260458,18.71843959,146.19,146.13,6.8406]
[1745803260757,11.87993959,146.19,146.08,26.96]
[1745803260959,11.87993959,146.2,146.08,26.96]
[1745803261159,11.87993959,146.23,146.1,11.87993959]
[1745803261360,38.83993959,146.23,146.11,1.961]
[1745803261559,6.8376,146.21,146.15,6.8399]
[1745803261763,6.8376,146.21,146.12,26.96]
[1745803262062,11.87993959,146.2,146.12,26.96]
[1745803262761,18.71803959,146.2,146.15,6.8399]
[1745803263061,11.87993959,146.2,146.15,6.8399]
[1745803263562,6.8384,146.19,146.14,6.8404]
[1745803264057,11.87993959,146.2,146.16,6.8394]
[1745803264256,38.83993959,146.23,146.16,6.8394]
[1745803264560,6.8388,146.18,146.13,8.8232]
[1745803264760,11.87993959,146.2,146.12,26.96]
[1745803265058,27.64,146.19,146.12,26.96]
[1745803265258,6.8388,146.18,146.12,26.96]
[1745803266163,11.87993959,146.14,146.06,0.29065]
[1745803266358,11.87993959,146.11,146.06,0.29065]
[1745803266562,6.8425,146.1,146.06,0.29065]
[1745803266963,11.87993959,146.11,146.06,0.29065]
[1745803267158,11.87993959,146.08,146.02,27.64]
[1745803267359,11.87993959,146.08,145.98,27.64]
[1745803267759,6.844,146.07,145.98,27.64]
[1745803268059,11.87993959,146.08,145.97,498.3735]
[1745803268258,6.8446,146.06,146.01,6.8462]
[1745803268564,11.87993959,146.08,145.98,27.64]
[1745803268761,11.87993959,146.05,145.98,27.64]
[1745803268963,11.87993959,146.05,145.97,6.0535]
[1745803269660,27.64,146.06,145.95,27.64]
[1745803269860,27.64,146.06,145.96,5.9989]
[1745803270464,11.87993959,146.07,145.96,5.9989]
[1745803270666,1.19202576,146.13,146.0,11.87993959]
[1745803270865,11.87993959,146.14,146.03,11.87993959]
[1745803271063,11.87993959,146.14,146.04,6.0904]
[1745803271266,13.99423959,146.17,146.11,6.8417]
[1745803271573,13.99423959,146.17,146.09,27.64]
[1745803271868,13.99423959,146.17,146.09,34.4825]
[1745803272068,13.99423959,146.17,146.09,27.64]
[1745803272567,11.87993959,146.14,146.06,27.64]
[1745803272963,1.19167879,146.21,146.06,27.64]
[1745803272964,11.87993959,146.19,146.06,39.51993959]
[1745803273268,27.64,146.24,146.09,11.87993959]
[1745803273466,6.8369,146.22,146.12,11.87993959]
[1745803273677,39.51993959,146.24,146.13,3.9986]
[1745803273876,39.51993959,146.24,146.14,27.64]
[1745803274180,6.8376,146.21,146.16,6.8392]
[1745803274975,11.87993959,146.21,146.16,6.8392]
[1745803275278,18.71753959,146.21,146.16,6.8392]
[1745803275575,11.87993959,146.21,146.14,27.64]
[1745803275776,39.51993959,146.24,146.14,27.64]
[1745803276073,2.1218,146.26,146.22,6.8367]
[1745803276377,39.51993959,146.3,146.19,27.64]
[1745803276574,39.51993959,146.3,146.2,27.64]
[1745803276974,6.8325,146.32,146.21,4.0657]
[1745803277378,11.87993959,146.3,146.21,4.0657]
[1745803277572,6.8343,146.28,146.21,4.0657]
[1745803277775,11.87993959,146.3,146.24,6.8358]
[1745803278279,6.8344,146.28,146.23,6.8362]
[1745803278470,11.87993959,146.3,146.21,4.0657]
[1745803278676,41.42973959,146.33,146.28,6.8338]
[1745803278982,27.64,146.36,146.24,27.64]
[1745803279379,11.87993959,146.34,146.24,27.64]
[1745803279782,18.71123959,146.34,146.29,6.8334]
[1745803280074,11.87993959,146.34,146.24,27.64]
[1745803280677,27.64,146.36,146.25,11.87993959]
[1745803281585,11.87993959,146.37,146.25,11.87993959]
[1745803281980,11.87993959,146.37,146.24,27.64]
[1745803282177,6.8302,146.36,146.29,6.8331]
[1745803282382,11.87993959,146.37,146.24,27.64]
[1745803282383,27.64,146.35,146.24,27.64]
[1745803282685,27.64,146.35,146.3,6.8326]
[1745803282881,11.87993959,146.34,146.24,27.64]
[1745803283081,11.87993959,146.31,146.24,27.64]
[1745803283283,39.51993959,146.31,146.27,6.8344]
[1745803283481,27.64,146.31,146.24,27.64]
[1745803283785,48.45543959,146.34,146.27,6.8341]
[1745803283988,41.62393959,146.34,146.27,6.8341]
[1745803284285,41.62393959,146.34,146.24,27.64]
[1745803284677,39.51993959,146.34,146.24,27.64]
[1745803285485,6.8324,146.32,146.24,27.64]
[1745803285688,11.87993959,146.31,146.21,31.6857]
[1745803285982,27.62,146.3,146.21,31.6857]
[1745803286384,11.87993959,146.28,146.21,31.6857]
[1745803286686,6.8348,146.27,146.22,6.8367]
[1745803288785,6.8351,146.26,146.22,6.8367]
[1745803289389,6.8345,146.27,146.22,6.8367]
[1745803289684,6.8345,146.27,146.23,6.8362]
[1745803290186,6.8349,146.26,146.21,38.5225]
[1745803290384,27.62,146.26,146.18,492.48]
[1745803290581,27.62,146.26,146.17,29.6255]
[1745803290582,11.87993959,146.25,146.17,29.6255]
[1745803290778,11.87993959,146.22,146.12,2.032]
[1745803291085,11.87993959,146.19,146.12,2.032]
[1745803291889,6.8397,146.16,146.12,2.032]
[1745803293187,6.8397,146.16,146.11,27.62]
[1745803293590,6.8407,146.14,146.07,27.64]
[1745803293885,39.51993959,146.16,146.07,27.64]
[1745803294289,6.8406,146.14,146.07,27.64]
[1745803294680,27.64,146.16,146.07,27.64]
[1745803295487,6.8402,146.15,146.1,6.8419]
[1745803295685,6.8402,146.15,146.07,27.64]
[1745803295887,11.87993959,146.16,146.07,27.64]
[1745803296186,11.87993959,146.16,146.06,4.1362]
[1745803296987,11.87993959,146.13,146.06,4.1362]
[1745803297190,28.28,146.12,146.06,4.1362]
[1745803297387,6.8422,146.11,146.07,6.8437]
[1745803297587,6.8422,146.11,146.06,4.1362]
[1745803297784,28.28,146.12,146.06,2.084]
[1745803298079,6.8421,146.11,146.06,8.9279]
[1745803298591,6.8421,146.11,146.07,6.8437]
[1745803298787,28.28,146.12,146.07,6.8437]
[1745803299090,28.28,146.12,146.06,8.9281]
[1745803299491,6.842,146.11,146.06,6.8441]
[1745803299690,28.28,146.12,146.06,6.8441]
[1745803299985,6.8416,146.12,146.04,28.26]
[1745803300190,11.87993959,146.16,146.04,28.26]
[1745803301190,6.8415,146.12,146.04,28.26]
[1745803301586,40.15993959,146.13,146.04,28.26]
[1745803301788,28.28,146.13,146.04,28.26]
[1745803301989,28.28,146.15,146.04,28.26]
[1745803302586,11.87993959,146.19,146.07,11.87993959]
[1745803302792,28.28,146.18,146.08,32.1844]
[1745803303092,6.8399,146.16,146.11,6.8416]
[1745803303292,6.8399,146.16,146.08,32.1844]
[1745803303688,6.8393,146.17,146.08,32.1844]
[1745803303895,28.28,146.18,146.08,32.1844]
[1745803304588,6.8383,146.19,146.08,32.1844]
[1745803304795,6.8383,146.19,146.14,6.8402]
[1745803304994,6.8383,146.19,146.1,11.87993959]
[1745803305196,6.8388,146.18,146.11,2.028]
[1745803305392,40.15993959,146.2,146.12,28.28]
[1745803306196,6.8395,146.17,146.12,35.1213]
[1745803306392,6.8395,146.17,146.12,28.28]
[1745803306599,6.8396,146.17,146.12,35.1214]
[1745803307097,40.15993959,146.2,146.12,28.28]
[1745803307399,11.87993959,146.17,146.09,28.28]
[1745803307602,28.28,146.16,146.09,28.28]
[1745803308298,35.12,146.16,146.11,6.8416]
[1745803308598,28.28,146.16,146.09,28.28]
[1745803308797,6.8402,146.15,146.1,6.8421]
[1745803309696,28.28,146.16,146.11,6.8418]
[1745803309901,28.28,146.19,146.09,28.28]
[1745803310502,6.8392,146.17,146.13,6.8409]
[1745803310697,28.28,146.19,146.09,28.28]
[1745803311195,6.8393,146.17,146.13,6.8408]
[1745803311895,2.0924,146.25,146.14,28.28]
[1745803312095,40.15993959,146.26,146.14,30.2221]
[1745803312304,40.15993959,146.26,146.19,6.8378]
[1745803312491,28.28,146.26,146.18,28.28]
[1745803312691,30.3442,146.29,146.18,28.28]
[1745803313695,28.28,146.29,146.18,28.28]
[1745803314000,6.8345,146.27,146.23,6.8362]
[1745803314296,376.87993959,146.31,146.22,28.28]
[1745803314497,376.87993959,146.31,146.24,6.8357]
[1745803314498,6.834,146.29,146.24,6.8357]
[1745803314700,11.87993959,146.31,146.23,2.0218]
[1745803315203,6.8351,146.26,146.23,2.0218]
[1745803315502,11.87993959,146.28,146.22,28.28]
[1745803315701,6.8352,146.26,146.22,35.1166]
[1745803316703,11.87993959,146.28,146.22,28.28]
[1745803316999,11.87993959,146.31,146.22,28.28]
[1745803317798,11.87993959,146.31,146.23,4.0453]
[1745803318301,11.87993959,146.28,146.22,28.28]
[1745803318896,6.835,146.26,146.22,35.1163]
[1745803319101,11.87993959,146.28,146.22,28.28]
[1745803319503,6.8356,146.25,146.22,28.28]
[1745803319898,28.28,146.27,146.19,32.3253]
[1745803320096,11.87993959,146.25,146.17,2.0842]
[1745803320300,11.87993959,146.22,146.16,28.28]
[1745803320701,28.28,146.23,146.16,28.28]
[1745803320998,20.47,146.33,146.16,28.28]
[1745803320999,493.489947,146.38,146.18,11.87993959]
[1745803321202,11.87993959,146.35,146.21,11.87993959]
[1745803321399,11.87993959,146.35,146.22,30.3013]
[1745803321599,6.8334,146.3,146.25,6.8353]
[1745803322100,6.8334,146.3,146.22,30.3013]
[1745803322301,6.8336,146.29,146.22,30.3013]
[1745803322499,11.87993959,146.32,146.22,30.3013]
[1745803322701,11.87993959,146.26,146.19,32.3873]
[1745803323105,11.87993959,146.26,146.2,6.8376]
[1745803323304,11.87993959,146.26,146.19,32.3873]
[1745803323513,11.87993959,146.23,146.16,28.26]
[1745803323706,11.87993959,146.2,146.16,28.26]
[1745803324206,11.87993959,146.2,146.12,28.26]
[1745803324706,6.8383,146.19,146.15,6.8399]
[1745803324910,11.87993959,146.2,146.12,28.26]
[1745803325405,6.8387,146.18,146.14,6.8402]
[1745803325607,19.37786288,146.2,146.12,28.26]
[1745803326008,6.8385,146.19,146.15,6.8397]
[1745803326708,19.37786288,146.17,146.1,2.0269]
[1745803327006,19.37786288,146.11,146.06,1.9227]
[1745803328507,19.37786288,146.11,146.04,2.0198]
[1745803328508,19.37786288,146.11,146.04,8.8649]
[1745803328699,19.37786288,146.11,146.04,2.0198]
[1745803328899,19.37786288,146.11,146.03,28.06]
[1745803329107,1.19104662,146.21,146.03,28.06]
[1745803329408,19.37786288,146.15,146.03,28.06]
[1745803329605,6.8425,146.1,146.05,6.8445]
[1745803330209,19.37786288,146.12,146.02,1.9411]
[1745803330406,19.37786288,146.09,146.02,1.9411]
[1745803330607,19.37786288,146.12,146.02,1.9411]
[1745803330811,47.45786288,146.14,146.03,28.08]
[1745803331311,6.8434,146.08,146.03,34.9253]
[1745803331607,6.8434,146.08,146.03,28.08]
[1745803332207,19.37786288,146.11,146.02,1.9411]
[1745803332411,19.37786288,146.08,146.02,1.9411]
[1745803333011,6.8438,146.07,146.03,6.8457]
[1745803333311,19.37786288,146.08,146.01,2.0192]
[1745803333506,19.37786288,146.08,145.97,2.1068]
[1745803333914,19.37786288,146.08,145.97,21.48466288]
[1745803334110,6.8448,146.05,146.0,6.8467]
[1745803334910,19.37786288,146.08,145.97,2.1068]
[1745803335113,47.45786288,146.05,145.97,2.1068]
[1745803335312,19.37786288,146.02,145.93,4.0925]
[1745803335510,6.8474,146.0,145.95,8.9558]
[1745803335709,28.08,146.02,145.95,2.1068]
[1745803335913,28.08,146.07,145.97,19.37786288]
[1745803336511,28.08,146.07,145.97,6.8484]
[1745803336512,6.846,146.03,145.97,6.8484]
[1745803336814,28.08,146.03,145.95,2.1068]
[1745803337011,6.8462,146.02,145.95,2.1068]
[1745803337208,28.08,146.03,145.95,2.1068]
[1745803337809,19.37786288,146.02,145.93,4.0925]
[1745803338112,6.8484,145.98,145.93,4.0925]
[1745803338312,28.08,146.03,145.93,2.0113]
[1745803338507,47.45786288,146.03,145.89,47.47786288]
[1745803338708,6.8475,145.99,145.93,6.8503]
[1745803338910,47.45786288,146.03,145.93,6.8503]
[1745803339106,19.37786288,146.0,145.89,28.1]
[1745803339311,28.1,145.99,145.89,28.1]
[1745803339816,6.8468,146.01,145.91,19.37786288]
[1745803340011,19.37786288,146.06,145.89,28.1]
[1745803340207,28.1,146.06,145.94,19.37786288]
[1745803340514,28.1,146.06,145.88,19.37786288]
[1745803340515,19.37786288,146.05,145.95,28.1]
[1745803340707,19.37786288,146.05,145.85,492.62]
[1745803340908,19.37786288,146.02,145.86,28.1]
[1745803341206,19.37786288,146.01,145.86,28.1]
[1745803341410,6.8485,145.97,145.87,19.37786288]
[1745803341609,19.37786288,146.01,145.9,19.37786288]
[1745803341816,19.37786288,146.01,145.91,30.4]
[1745803342120,6.8481,145.98,145.92,6.8504]
[1745803342311,19.37786288,146.01,145.91,30.4]
[1745803342517,365.0,146.07,145.94,19.37786288]
[1745803342716,365.0,146.07,145.88,19.37786288]
[1745803342717,542.29786288,146.09,145.97,19.37786288]
[1745803343818,6.8423,146.11,146.04,6.8451]
[1745803344016,19.37786288,146.1,146.01,30.4]
[1745803344523,6.8447,146.06,146.01,30.4]
[1745803345017,19.37786288,146.07,145.98,30.4]
[1745803345216,19.37786288,146.04,145.98,30.4]
[1745803345415,19.37786288,146.04,145.95,30.4]